[Event "2nd Father Cup Blitz 2023"]
[Site "Rasht"]
[Date "2023.12.07"]
[Round "13.3"]
[White "Mahdavi, Reza"]
[Black "Jahedi, Mani"]
[Result "1-0"]
[ECO "B39"]
[WhiteElo "2312"]
[BlackElo "2121"]
[Annotator "RC"]
[PlyCount "105"]
[EventDate "2023.12.07"]
[EventType "swiss"]
[EventCountry "IRI"]
[SourceTitle "playchess.com"]
[Source "ChessBase"]
[SourceQuality "1"]
[TimeControl "300+2"]

1. e4 {[%emt 0:00:01]} c5 {[%emt 0:00:01]} 2. Nf3 {[%emt 0:00:01]} g6 {[%emt 0:00:07]} 3. d4 {[%emt 0:00:00]} cxd4 {[%emt 0:00:01]} 4. Nxd4 {[%emt 0:00:01]} Nc6 {[%emt 0:00:01]} 5. c4 {[%emt 0:00:02]} Nf6 {[%emt 0:00:01]} 6. Nc3 {[%emt 0:00:01]} d6 {[%emt 0:00:01]} 7. Be3 {[%emt 0:00:02]} Ng4 {[%emt 0:00:01]} 8. Nc2 {[%emt 0:00:10]} Nxe3 {[%emt 0:00:04]} 9. Nxe3 {[%emt 0:00:01]} Bg7 {[%emt 0:00:02]} 10. Be2 {[%emt 0:00:01]} O-O {[%emt 0:00:07]} 11. O-O {[%emt 0:00:01]} Qa5 {[%emt 0:00:10]} 12. Qd2 {[%emt 0:00:08]} Be6 {[%emt 0:00:23]} 13. Rfd1 {[%emt 0:00:02]} Rfc8 {[%emt 0:00:07]} 14. Ned5 {[%emt 0:00:16]} Bxd5 {[%emt 0:00:26]} 15. Nxd5 {[%emt 0:00:06]} Qxd2 {[%emt 0:00:09]} 16. Rxd2 {[%emt 0:00:01]} e6 {[%emt 0:00:10]} 17. Ne3 {[%emt 0:00:01]} a5 {[%emt 0:00:21]} 18. Rad1 {[%emt 0:00:17]} a4 {[%emt 0:00:05]} 19. g3 {[%emt 0:00:29]} Nb4 {[%emt 0:00:50]} 20. Rxd6 {[%emt 0:01:01]} Bxb2 {[%emt 0:00:53]} 21. Rb6 {[%emt 0:00:01]} Bc3 {[%emt 0:00:23]} 22. a3 {[%emt 0:00:03]} Na6 {[%emt 0:00:00]} 23. Rxb7 {[%emt 0:00:01]} Nc5 {[%emt 0:00:01]} 24. Rb5 {[%emt 0:00:08]} Nb3 {[%emt 0:00:09]} 25. Kf1 {[%emt 0:00:27]} Nd2+ {[%emt 0:00:29]} 26. Kg2 {[%emt 0:00:02]} Ra7 {[%emt 0:00:13]} 27. Bd3 {[%emt 0:00:08]} Nb3 {[%emt 0:00:23]} 28. Bb1 {[%emt 0:00:10]} h5 {[%emt 0:00:10]} 29. Rd3 {[%emt 0:00:09]} Bb2 {[%emt 0:00:06]} 30. Bc2 {[%emt 0:00:03]} Bxa3 {[%emt 0:00:02]} 31. Bxb3 {[%emt 0:00:02]} axb3 {[%emt 0:00:01]} 32. Rdxb3 {[%emt 0:00:05]} Bc1 {[%emt 0:00:02]} 33. c5 {[%emt 0:00:12]} Rac7 {[%emt 0:00:03]} 34. Rc3 {[%emt 0:00:01]} Bd2 {[%emt 0:00:02]} 35. Rc2 {[%emt 0:00:02]} Bxe3 {[%emt 0:00:02]} 36. fxe3 {[%emt 0:00:01]} Rc6 {[%emt 0:00:04]} 37. e5 {[%emt 0:00:01]} Kg7 {[%emt 0:00:02]} 38. Kf3 {[%emt 0:00:01]} g5 {[%emt 0:00:01]} 39. Ke4 {[%emt 0:00:02]} Kg6 {[%emt 0:00:01]} 40. h4 {[%emt 0:00:11]} Ra8 {[%emt 0:00:03]} 41. Rb4 {[%emt 0:00:02]} Ra5 {[%emt 0:00:01]} 42. Kd4 {[%emt 0:00:06]} Ra1 {[%emt 0:00:04]} 43. Rb6 {[%emt 0:01:48]} Ra4+ {[%emt 0:00:01]} 44. Rc4 {[%emt 0:00:00]} Rxc4+ 45. Kxc4 {[%emt 0:00:00]} Rc8 {[%emt 0:00:04]} 46. e4 {[%emt 0:00:00]} g4 {[%emt 0:00:04]} 47. c6 {[%emt 0:00:00]} f6 {[%emt 0:00:02]} 48. Kc5 {[%emt 0:00:00]} f5 {[%emt 0:00:01]} 49. Kd6 {[%emt 0:00:00]} fxe4 {[%emt 0:00:06]} 50. c7 {[%emt 0:00:00]} Kf5 {[%emt 0:00:00]} 51. Rb1 {[%emt 0:00:00]} e3 {[%emt 0:00:00]} 52. Rb4 {[%emt 0:00:00]} Rxc7 {[%emt 0:00:06]} 53. Re4 {[%emt 0:00:20]} 1-0

[Event "2nd Father Cup Blitz 2023"]
[Site "Rasht"]
[Date "2023.12.07"]
[Round "13.4"]
[White "Mosadeghpour, Masoud"]
[Black "Khoshkalam, Seyed Mehrab"]
[Result "1-0"]
[ECO "C01"]
[WhiteElo "2473"]
[BlackElo "2266"]
[Annotator "RC"]
[PlyCount "82"]
[EventDate "2023.12.07"]
[EventType "swiss"]
[EventCountry "IRI"]
[SourceTitle "playchess.com"]
[Source "ChessBase"]
[SourceQuality "1"]
[TimeControl "300+2"]

1. e4 {[%emt 0:00:01]} e6 {[%emt 0:00:02]} 2. d4 {[%emt 0:00:02]} d5 {[%emt 0:00:01]} 3. exd5 {[%emt 0:00:02]} exd5 {[%emt 0:00:03]} 4. Nf3 {[%emt 0:00:03]} Bd6 {[%emt 0:00:05]} 5. Bd3 {[%emt 0:00:02]} Nc6 {[%emt 0:00:01]} 6. O-O {[%emt 0:00:06]} Nge7 {[%emt 0:00:03]} 7. Re1 {[%emt 0:00:01]} Bg4 {[%emt 0:00:04]} 8. c3 {[%emt 0:00:02]} Qd7 {[%emt 0:00:03]} 9. h3 {[%emt 0:00:05]} Bh5 {[%emt 0:00:12]} 10. b4 {[%emt 0:00:04]} Bg6 {[%emt 0:00:03]} 11. Bf1 {[%emt 0:00:01]} f6 {[%emt 0:00:06]} 12. Nbd2 {[%emt 0:00:05]} O-O {[%emt 0:00:04]} 13. Nb3 {[%emt 0:00:01]} Rae8 {[%emt 0:00:09]} 14. Nc5 {[%emt 0:00:08]} Bxc5 {[%emt 0:00:01]} 15. dxc5 {[%emt 0:00:09]} Nd8 {[%emt 0:00:10]} 16. c4 {[%emt 0:00:09]} Bf7 {[%emt 0:00:09]} 17. Bf4 {[%emt 0:00:17]} Qc8 {[%emt 0:00:13]} 18. Qb3 {[%emt 0:04:20]} Qd7 {[%emt 0:00:18]} 19. Rad1 {[%emt 0:00:00]} Ng6 {[%emt 0:00:43]} 20. Bh2 {[%emt 0:00:00]} Rxe1 {[%emt 0:00:03]} 21. Nxe1 {[%emt 0:00:00]} c6 {[%emt 0:00:08]} 22. cxd5 {[%emt 0:00:00]} cxd5 {[%emt 0:00:06]} 23. Nf3 {[%emt 0:00:00]} Re8 {[%emt 0:00:09]} 24. b5 {[%emt 0:00:00]} Ne5 {[%emt 0:00:30]} 25. Bxe5 {[%emt 0:00:00]} fxe5 {[%emt 0:00:01]} 26. Ng5 {[%emt 0:00:00]} d4 {[%emt 0:00:10]} 27. Nxf7 {[%emt 0:00:00]} Nxf7 {[%emt 0:00:02]} 28. c6 {[%emt 0:00:00]} Qc7 {[%emt 0:00:09]} 29. cxb7 {[%emt 0:00:00]} Qxb7 {[%emt 0:00:05]} 30. Bc4 {[%emt 0:00:00]} Re7 {[%emt 0:00:10]} 31. Rc1 {[%emt 0:00:00]} g6 {[%emt 0:00:07]} 32. Bd5 {[%emt 0:00:00]} Qd7 {[%emt 0:00:04]} 33. a4 {[%emt 0:00:00]} Kg7 {[%emt 0:00:02]} 34. a5 {[%emt 0:00:00]} e4 {[%emt 0:00:14]} 35. b6 {[%emt 0:00:00]} axb6 {[%emt 0:00:04]} 36. axb6 {[%emt 0:00:00]} e3 {[%emt 0:00:12]} 37. b7 {[%emt 0:00:00]} exf2+ {[%emt 0:00:10]} 38. Kxf2 {[%emt 0:00:00]} Re8 {[%emt 0:00:21]} 39. Bxf7 {[%emt 0:00:00]} Qf5+ {[%emt 0:00:19]} 40. Qf3 {[%emt 0:00:00]} Rb8 {[%emt 0:00:03]} 41. Qxf5 {[%emt 0:00:46]} Ra8 {[%emt 0:00:45]} 1-0